bitfinex/quotes_SOLUSD_20230105
["timestamp","ask_amount","ask_price","bid_price","bid_amount"]
[1672924914170,171.541,13.187,13.176,20.0]
[1672924914391,171.541,13.187,13.177,37.0]
[1672924914592,171.541,13.187,13.177,59.41737149]
[1672924914798,171.541,13.187,13.178,22.41737149]
[1672924915007,171.541,13.187,13.179,17.0]
[1672924915217,114.621,13.187,13.179,17.0]
[1672924916808,114.621,13.187,13.179,39.41737149]
[1672924917132,114.621,13.187,13.177,20.0]
[1672924917442,114.621,13.187,13.176,22.41737149]
[1672924917626,114.621,13.187,13.177,42.41737149]
[1672924918573,114.621,13.187,13.178,17.0]
[1672924918805,20.0,13.185,13.178,17.0]
[1672924919116,56.92,13.186,13.178,17.0]
[1672924919333,171.541,13.187,13.178,17.0]
[1672924919514,114.621,13.187,13.178,39.41737149]
[1672924923408,171.541,13.187,13.178,39.41737149]
[1672924927410,171.541,13.187,13.178,22.41737149]
[1672924927615,171.541,13.187,13.177,20.0]
[1672924927927,20.0,13.186,13.176,22.41737149]
[1672924928137,20.0,13.186,13.177,20.0]
[1672924928891,20.0,13.186,13.178,17.0]
[1672924929417,20.0,13.186,13.177,20.0]
[1672924929625,56.93,13.185,13.175,20.0]
[1672924929843,20.0,13.184,13.175,20.0]
[1672924930986,20.0,13.184,13.176,17.0]
[1672924931181,20.0,13.184,13.177,20.0]
[1672924931388,20.0,13.184,13.178,17.0]
[1672924933097,20.0,13.182,13.178,17.0]
[1672924938246,56.94,13.183,13.178,17.0]
[1672924939393,20.0,13.182,13.178,17.0]
[1672924940959,20.0,13.184,13.178,17.0]
[1672924946231,56.94,13.183,13.178,17.0]
[1672924946437,20.0,13.184,13.178,17.0]
[1672924946753,20.0,13.184,13.169,85.77384298]
[1672924947066,20.0,13.184,13.17,22.41737149]
[1672924947280,13.11,13.18,13.17,50.19737149]
[1672924947491,13.11,13.18,13.17,27.78]
[1672924948016,13.11,13.18,13.171,17.0]
[1672924950761,13.11,13.18,13.17,47.82]
[1672924951159,13.11,13.18,13.17,70.23737149]
[1672924951381,13.11,13.18,13.17,39.41737149]
[1672924951601,13.11,13.18,13.171,20.0]
[1672924951813,13.11,13.18,13.172,17.0]
[1672924953066,13.11,13.18,13.17,54.19737149]
[1672924953279,13.11,13.18,13.17,22.41737149]
[1672924955392,13.11,13.18,13.171,17.0]
[1672924956124,13.11,13.18,13.169,33.74]
[1672924956326,13.11,13.18,13.165,35.55]
[1672924956542,56.95,13.179,13.164,34.15]
[1672924956735,20.0,13.178,13.164,34.15]
[1672924957589,20.0,13.178,13.168,17.0]
[1672924959694,90.06,13.18,13.168,17.0]
[1672924960120,33.11,13.18,13.168,17.0]
[1672924960943,20.0,13.178,13.168,17.0]
[1672924961152,33.11,13.18,13.168,39.41737149]
[1672924961371,13.11,13.18,13.169,34.31]
[1672924961689,118.714,13.182,13.171,20.0]
[1672924961884,118.714,13.182,13.172,17.0]
[1672924962301,20.0,13.181,13.172,17.0]
[1672924962517,20.0,13.181,13.171,17.0]
[1672924963161,118.714,13.182,13.171,17.0]
[1672924963385,118.714,13.182,13.172,22.41737149]
[1672924963566,118.714,13.182,13.173,17.0]
[1672924964204,118.714,13.182,13.172,17.0]
[1672924965675,118.714,13.182,13.172,20.0]
[1672924965896,118.714,13.182,13.173,17.0]
[1672924966746,118.714,13.182,13.172,17.0]
[1672924966958,118.714,13.182,13.173,22.41737149]
[1672924967142,118.714,13.182,13.174,17.0]
[1672924967565,118.714,13.182,13.174,39.41737149]
[1672924967773,56.92,13.186,13.174,39.41737149]
[1672924967774,172.389,13.186,13.174,39.41737149]
[1672924968003,115.469,13.186,13.175,20.0]
[1672924968199,115.469,13.186,13.176,17.0]
[1672924968525,115.469,13.186,13.177,20.0]
[1672924968843,115.469,13.186,13.178,17.0]
[1672924971394,115.469,13.186,13.177,20.0]
[1672924971573,115.469,13.186,13.175,20.0]
[1672924971783,20.0,13.184,13.175,20.0]
[1672924972844,76.93,13.185,13.176,17.0]
[1672924973061,56.93,13.185,13.177,20.0]
[1672924973367,56.93,13.185,13.178,17.0]
[1672924973582,56.93,13.185,13.177,20.0]
[1672924973583,20.0,13.185,13.177,20.0]
[1672924973794,20.0,13.185,13.175,20.0]
[1672924974737,20.0,13.185,13.171,76.99]
[1672924974738,20.0,13.184,13.171,56.99]
[1672924974953,76.94,13.183,13.17,56.99]
[1672924975171,76.94,13.183,13.168,79.41737149]
[1672924975355,20.0,13.182,13.169,20.0]
[1672924975774,20.0,13.182,13.169,42.41737149]
[1672924976536,56.94,13.183,13.171,20.0]
[1672924976720,56.94,13.183,13.172,17.0]
[1672924977057,56.92,13.186,13.173,20.0]
[1672924977265,13.08,13.19,13.173,20.0]
[1672924977266,56.91,13.189,13.174,189.9494]
[1672924977466,56.91,13.189,13.176,20.0]
[1672924977668,56.91,13.189,13.177,37.0]
[1672924978846,20.0,13.187,13.177,37.0]
[1672924981260,20.0,13.187,13.177,20.0]
[1672924981471,56.92,13.186,13.175,20.0]
[1672924981685,20.0,13.185,13.175,20.0]
[1672924982530,20.0,13.185,13.176,17.0]
[1672924982840,20.0,13.185,13.177,20.0]
[1672924983260,56.92,13.186,13.177,20.0]
[1672924983665,56.92,13.187,13.177,20.0]
[1672924983878,119.6276,13.19,13.178,17.0]
[1672924984100,119.6276,13.19,13.178,73.96]
[1672924984306,119.6276,13.19,13.179,20.0]
[1672924984307,6.58,13.19,13.179,20.0]
[1672924984516,6.58,13.19,13.18,17.0]
[1672924984711,6.58,13.19,13.181,20.0]
[1672924985047,6.58,13.19,13.182,17.0]
[1672924986610,6.58,13.19,13.181,17.0]
[1672924990387,6.58,13.19,13.18,17.0]
[1672924990808,6.58,13.19,13.179,17.0]
[1672924995871,6.58,13.19,13.179,85.83737149]
[1672924996183,6.58,13.19,13.179,39.41737149]
[1672924997848,6.58,13.19,13.18,42.74]
[1672924998062,56.87,13.199,13.181,37.0]
[1672924998272,169.2987,13.199,13.183,20.0]
[1672924998488,112.4287,13.199,13.185,20.0]
[1672924998693,112.4287,13.199,13.186,80.37]
[1672924998907,56.87,13.198,13.187,17.0]
[1672924999117,20.0,13.197,13.187,17.0]
[1672925001760,20.0,13.196,13.182,46.64]
[1672925002067,6.49,13.19,13.178,22.41737149]
[1672925002279,6.49,13.19,13.179,66.1]
[1672925002471,6.49,13.19,13.179,46.1]
[1672925002894,6.49,13.19,13.18,39.41737149]
[1672925003333,6.49,13.19,13.181,42.41737149]
[1672925003521,6.49,13.19,13.182,17.0]
[1672925003731,6.49,13.19,13.182,39.41737149]
[1672925005777,6.49,13.19,13.182,17.0]
[1672925006087,6.49,13.19,13.181,17.0]
[1672925009976,6.49,13.19,13.181,58.46]
[1672925011534,6.49,13.19,13.181,80.87737149]
[1672925011743,6.49,13.19,13.181,39.41737149]
[1672925012180,118.6579,13.193,13.181,39.41737149]
[1672925013107,56.88,13.197,13.183,20.0]
[1672925013319,116.467,13.198,13.184,37.0]
[1672925013530,116.467,13.198,13.184,59.41737149]
[1672925013741,116.467,13.198,13.185,22.41737149]
[1672925013966,116.467,13.198,13.186,37.0]
[1672925014581,116.467,13.198,13.187,20.0]
[1672925014916,116.467,13.198,13.188,17.0]
[1672925015124,116.467,13.198,13.188,128.682]
[1672925015948,116.467,13.198,13.188,111.682]
[1672925017333,116.467,13.198,13.189,17.0]
[1672925018052,20.0,13.197,13.189,17.0]
[1672925018703,20.0,13.197,13.188,111.682]
[1672925020062,20.0,13.197,13.189,17.0]
[1672925021208,76.88,13.197,13.182,22.41737149]
[1672925021417,6.54,13.19,13.175,20.0]
[1672925021631,6.54,13.19,13.177,22.41737149]
[1672925023101,6.54,13.19,13.179,20.0]
[1672925023318,6.54,13.19,13.18,17.0]
[1672925024983,6.54,13.19,13.181,20.0]
[1672925025194,6.54,13.19,13.182,17.0]
[1672925025413,6.54,13.19,13.182,39.41737149]
[1672925025830,6.54,13.19,13.183,22.41737149]
[1672925026046,6.54,13.19,13.184,17.0]
[1672925027425,56.88,13.195,13.184,39.41737149]
[1672925027632,20.0,13.197,13.186,20.0]
[1672925027848,20.0,13.197,13.187,37.0]
[1672925028995,76.88,13.197,13.187,37.0]
[1672925031620,56.88,13.197,13.187,37.0]
[1672925034759,20.0,13.196,13.187,37.0]
[1672925036030,20.0,13.194,13.187,37.0]
[1672925036240,56.88,13.195,13.187,37.0]
[1672925036447,20.0,13.196,13.187,37.0]
[1672925036674,76.88,13.197,13.187,37.0]
[1672925037825,56.88,13.197,13.187,59.41737149]
[1672925038030,110.6739,13.198,13.187,59.41737149]
[1672925038244,110.6739,13.198,13.188,115.9597]
[1672925038469,110.6739,13.198,13.189,17.0]
[1672925039840,110.6739,13.198,13.19,22.41737149]
[1672925040049,110.6739,13.198,13.191,17.0]
[1672925041718,20.0,13.197,13.191,17.0]
[1672925043731,20.0,13.197,13.188,115.9597]
[1672925043942,20.0,13.197,13.187,20.0]
[1672925044257,20.0,13.197,13.185,20.0]
[1672925044663,20.0,13.195,13.185,20.0]
[1672925045305,20.0,13.195,13.186,17.0]
[1672925045513,20.0,13.195,13.187,20.0]
[1672925045721,76.88,13.197,13.188,17.0]
[1672925045722,56.88,13.197,13.188,17.0]
[1672925045950,133.09127149,13.198,13.188,17.0]
[1672925045951,110.6739,13.198,13.188,17.0]
[1672925046151,110.6739,13.198,13.188,125.273]
[1672925046774,20.0,13.197,13.188,125.273]
[1672925047931,20.0,13.197,13.187,20.0]
[1672925047932,20.0,13.195,13.187,20.0]
[1672925048144,20.0,13.195,13.185,20.0]
[1672925049509,56.88,13.196,13.186,17.0]
[1672925049731,20.0,13.197,13.186,17.0]
[1672925049944,20.0,13.197,13.187,20.0]
[1672925050157,56.88,13.196,13.188,17.0]
[1672925050365,20.0,13.195,13.188,17.0]
[1672925051097,20.0,13.195,13.184,37.45]
[1672925051098,20.0,13.193,13.184,37.45]
[1672925051316,6.49,13.19,13.184,37.45]
[1672925053313,6.49,13.19,13.179,48.64]
[1672925053835,6.49,13.19,13.18,22.41737149]
[1672925054043,6.49,13.19,13.181,20.0]
[1672925054249,112.1278,13.193,13.182,17.0]
[1672925054446,112.1278,13.193,13.183,26.76]
[1672925054783,112.1278,13.193,13.184,37.0]
[1672925055003,56.87,13.199,13.185,20.0]
[1672925055201,20.0,13.198,13.186,17.0]
[1672925055722,20.0,13.198,13.187,20.0]
[1672925055941,20.0,13.198,13.188,17.0]
[1672925058691,20.0,13.196,13.188,17.0]
[1672925058904,20.0,13.196,13.187,19.90644515]
[1672925059105,76.88,13.195,13.176,28.29]
[1672925059318,6.53,13.19,13.177,20.0]
[1672925059767,6.53,13.19,13.178,22.41737149]
[1672925059944,6.53,13.19,13.179,20.0]
[1672925060374,6.53,13.19,13.178,22.41737149]
[1672925060586,6.53,13.19,13.179,17.0]
[1672925060797,6.53,13.19,13.18,22.41737149]
[1672925061424,6.53,13.19,13.182,20.0]
[1672925061641,6.53,13.19,13.183,17.0]
[1672925061832,6.53,13.19,13.183,39.41737149]
[1672925062772,6.53,13.19,13.184,22.41737149]
[1672925063001,6.53,13.19,13.185,17.0]
[1672925063214,136.6207,13.194,13.185,17.0]
[1672925063405,116.6207,13.194,13.185,17.0]
[1672925064029,116.6207,13.194,13.186,20.0]
[1672925064259,116.6207,13.194,13.187,37.0]
[1672925064855,56.87,13.199,13.187,17.0]
[1672925065017,20.0,13.198,13.187,17.0]
[1672925065233,56.88,13.197,13.187,17.0]
[1672925065433,20.0,13.196,13.187,17.0]
[1672925068238,56.88,13.197,13.187,17.0]
[1672925068866,76.87,13.198,13.187,17.0]
[1672925076533,56.87,13.198,13.188,116.2786]
[1672925076744,56.87,13.198,13.19,20.0]
[1672925076963,119.9418,13.199,13.191,17.0]
[1672925077494,119.9418,13.199,13.19,17.0]
[1672925077893,119.9418,13.199,13.189,17.0]
[1672925082003,176.8118,13.199,13.189,17.0]
[1672925082337,20.0,13.198,13.189,17.0]
[1672925082969,20.0,13.198,13.188,116.2786]
[1672925084846,20.0,13.196,13.188,116.2786]
[1672925085062,20.0,13.196,13.182,24.82]
[1672925085269,6.49,13.19,13.182,24.82]
[1672925085676,6.49,13.19,13.181,114.7263]
[1672925085903,6.49,13.19,13.183,22.41737149]
[1672925086857,6.49,13.19,13.182,22.41737149]
[1672925087383,6.49,13.19,13.183,17.0]
[1672925087788,6.49,13.19,13.184,22.41737149]
[1672925088001,6.49,13.19,13.185,17.0]
[1672925088210,56.88,13.195,13.185,17.0]
[1672925088758,20.0,13.193,13.185,17.0]
[1672925090944,46.56146991,13.198,13.186,53.02]
[1672925091173,119.9418,13.199,13.188,20.0]
[1672925091356,119.9418,13.199,13.187,22.41737149]
[1672925091574,119.9418,13.199,13.189,17.0]
[1672925093154,119.9418,13.199,13.188,17.0]
[1672925093375,119.9418,13.199,13.188,134.5622]
[1672925099456,20.0,13.198,13.188,134.5622]
[1672925099878,119.9418,13.199,13.188,134.5622]
[1672925100414,119.9418,13.199,13.189,22.41737149]
[1672925100608,119.9418,13.199,13.19,17.0]
[1672925101020,119.9418,13.199,13.19,39.41737149]
[1672925101360,6.5,13.2,13.19,39.41737149]
[1672925103648,32.7,13.2,13.188,117.5622]
[1672925103879,56.87,13.199,13.188,117.5622]
[1672925104086,20.0,13.198,13.188,117.5622]
[1672925104411,56.88,13.197,13.188,117.5622]
[1672925104599,20.0,13.196,13.188,117.5622]
[1672925105334,20.0,13.196,13.189,17.0]
[1672925107437,56.88,13.197,13.189,17.0]
[1672925109558,20.0,13.196,13.185,22.41737149]
[1672925109792,20.0,13.196,13.186,20.0]
[1672925110595,20.0,13.196,13.184,20.0]
[1672925110922,6.55,13.19,13.174,115.9694]
[1672925111117,6.55,13.19,13.176,20.0]
[1672925111330,6.55,13.19,13.176,22.41737149]
[1672925111554,6.55,13.19,13.177,15.57]
[1672925111747,26.55,13.19,13.177,15.57]
[1672925112170,26.55,13.19,13.177,37.98737149]
[1672925112380,136.4945,13.19,13.177,37.98737149]
[1672925112895,136.4945,13.19,13.178,17.0]
[1672925113111,143.0345,13.19,13.179,15.57]
[1672925113321,123.0345,13.19,13.18,17.0]
[1672925113871,123.0345,13.19,13.181,22.41737149]
[1672925114177,123.0345,13.19,13.182,17.0]
[1672925114802,109.9445,13.19,13.182,17.0]
[1672925122278,56.89,13.194,13.182,17.0]
[1672925123791,76.89,13.194,13.182,17.0]
[1672925123964,76.89,13.194,13.181,22.41737149]
[1672925124175,20.0,13.193,13.178,56.96]
[1672925124586,20.0,13.193,13.179,22.41737149]
[1672925124587,13.06,13.19,13.179,22.41737149]
[1672925125965,13.06,13.19,13.18,17.0]
[1672925127940,13.06,13.19,13.18,73.95]
[1672925128574,13.06,13.19,13.18,17.0]
[1672925129623,13.06,13.19,13.18,22.41737149]
[1672925129842,13.06,13.19,13.181,17.0]
[1672925133103,6.55,13.19,13.181,17.0]
[1672925135388,6.55,13.19,13.178,56.96]
[1672925135826,6.55,13.19,13.178,79.37737149]
[1672925136022,6.55,13.19,13.178,22.41737149]
[1672925136885,6.55,13.19,13.179,17.0]
[1672925137713,6.55,13.19,13.179,73.95]
[1672925139407,6.55,13.19,13.179,96.36737149]
[1672925141532,6.55,13.19,13.179,39.41737149]
[1672925141734,6.55,13.19,13.179,22.41737149]
[1672925143523,6.55,13.19,13.18,17.0]
[1672925148552,6.55,13.19,13.179,17.0]
[1672925149395,6.55,13.19,13.181,20.0]
[1672925149620,6.55,13.19,13.182,17.0]
[1672925150566,6.55,13.19,13.181,17.0]
[1672925160006,6.55,13.19,13.18,58.23]
[1672925165068,6.55,13.19,13.18,80.64737149]
[1672925165486,6.55,13.19,13.18,39.41737149]
[1672925166214,6.55,13.19,13.18,17.0]
[1672925166412,6.55,13.19,13.177,22.41737149]
[1672925166625,6.55,13.19,13.178,32.73]
[1672925166953,6.55,13.19,13.179,22.41737149]
[1672925167381,6.55,13.19,13.181,20.0]
[1672925167573,112.4073,13.192,13.181,20.0]
[1672925167793,109.7588,13.195,13.183,20.0]
[1672925168117,109.4381,13.198,13.184,91.18737149]
[1672925168316,109.4381,13.198,13.185,20.0]
[1672925168521,109.4381,13.198,13.186,73.38]
[1672925169886,109.4381,13.198,13.186,37.0]
[1672925170530,109.4381,13.198,13.186,20.0]
[1672925170730,20.0,13.196,13.185,20.0]
[1672925170930,20.0,13.196,13.184,42.41737149]
[1672925171366,56.88,13.195,13.184,42.41737149]
[1672925171591,20.0,13.194,13.184,42.41737149]
[1672925171994,20.0,13.194,13.185,17.0]
[1672925172205,20.0,13.194,13.186,20.0]
[1672925172426,76.88,13.196,13.187,17.0]
[1672925176098,56.88,13.196,13.187,17.0]
[1672925177987,76.88,13.197,13.187,17.0]
[1672925184947,99.29737149,13.197,13.187,17.0]
[1672925185475,76.88,13.197,13.187,17.0]
[1672925189790,99.29737149,13.197,13.187,17.0]
[1672925197867,145.8588414,13.197,13.187,17.0]
[1672925198734,20.0,13.196,13.187,17.0]
[1672925198928,20.0,13.194,13.187,17.0]
[1672925199137,56.89,13.193,13.187,17.0]
[1672925199353,20.0,13.192,13.187,17.0]
[1672925201672,56.89,13.193,13.187,17.0]
[1672925202721,20.0,13.192,13.187,17.0]
[1672925203130,20.0,13.19,13.187,17.0]
[1672925203683,20.0,13.19,13.176,45.11]
[1672925203884,26.55,13.19,13.176,45.11]
[1672925204401,26.55,13.19,13.175,39.42]
[1672925204591,75.16737149,13.19,13.175,39.42]
[1672925204805,20.0,13.188,13.174,230.5901]
[1672925205139,20.0,13.188,13.175,35.19]
[1672925205661,42.41737149,13.188,13.175,35.19]
[1672925205879,20.0,13.186,13.176,20.0]
[1672925206403,76.92,13.188,13.176,20.0]
[1672925206611,20.0,13.188,13.176,50.92]
[1672925206804,20.0,13.188,13.176,20.0]
[1672925207887,56.91,13.189,13.177,17.0]
[1672925208099,109.73,13.19,13.177,17.0]
[1672925208412,83.52,13.19,13.177,17.0]
[1672925208846,63.52,13.19,13.177,17.0]
[1672925209164,6.61,13.19,13.178,20.0]
[1672925209373,6.61,13.19,13.179,17.0]
[1672925213140,6.61,13.19,13.179,46.49]
[1672925213579,6.61,13.19,13.179,17.0]
[1672925216933,6.61,13.19,13.178,17.0]
[1672925217778,6.61,13.19,13.177,24.26]
[1672925218399,32.76,13.19,13.177,24.26]
[1672925219025,32.76,13.19,13.178,17.0]
[1672925220613,32.76,13.19,13.18,20.0]
[1672925220814,6.57,13.19,13.181,17.0]
[1672925226107,6.57,13.19,13.18,40.93]
[1672925228194,118.848,13.195,13.18,97.88730283]
[1672925228506,118.848,13.195,13.182,20.0]
[1672925228716,118.848,13.195,13.183,58.37]
[1672925228920,172.5854,13.197,13.184,20.0]
[1672925229124,172.5854,13.197,13.185,17.0]
[1672925229539,195.00277149,13.197,13.186,20.0]
[1672925229750,138.12277149,13.197,13.187,17.0]
[1672925230009,56.87,13.199,13.187,17.0]
[1672925230176,56.87,13.199,13.188,118.2539]
[1672925230386,56.87,13.199,13.189,17.0]
[1672925231028,56.87,13.199,13.19,20.0]
[1672925231225,6.58,13.2,13.191,17.0]
[1672925232479,6.58,13.2,13.19,17.0]
[1672925238285,6.58,13.2,13.19,20.0]
[1672925238500,6.58,13.2,13.191,17.0]
[1672925238920,6.58,13.2,13.19,17.0]
[1672925241129,6.58,13.2,13.188,118.2539]
[1672925241130,52.85,13.2,13.188,118.2539]
[1672925241555,79.28737149,13.199,13.188,118.2539]
[1672925241769,20.0,13.198,13.188,118.2539]
[1672925241953,42.41737149,13.198,13.188,118.2539]
[1672925242369,42.41737149,13.198,13.189,17.0]
[1672925243230,22.41737149,13.198,13.189,17.0]
[1672925243443,26.61,13.2,13.189,17.0]
[1672925243629,29.02737149,13.2,13.189,17.0]
[1672925243845,6.61,13.2,13.189,32.93]
[1672925244059,6.61,13.2,13.19,20.0]
[1672925244272,6.61,13.2,13.191,33.74]
[1672925244497,6.61,13.2,13.192,20.0]
[1672925244713,6.61,13.2,13.193,17.0]
[1672925246903,6.61,13.2,13.192,17.0]
[1672925247110,6.61,13.2,13.191,17.0]
[1672925247434,6.61,13.2,13.19,17.0]
[1672925247847,26.61,13.2,13.19,17.0]
[1672925248382,6.61,13.2,13.19,17.0]
[1672925251119,26.61,13.2,13.19,17.0]
[1672925251316,52.81,13.2,13.19,17.0]
[1672925251534,52.81,13.2,13.187,15.68]
[1672925251535,52.91,13.2,13.189,17.0]
[1672925251858,75.32737149,13.2,13.189,17.0]
[1672925253445,75.32737149,13.2,13.187,15.68]
[1672925253752,56.87,13.199,13.186,20.0]
[1672925253968,20.0,13.198,13.184,22.42]
[1672925254183,6.55,13.19,13.182,21.71]
[1672925254495,6.55,13.19,13.181,118.2539]
[1672925255539,6.55,13.19,13.182,17.0]
[1672925256063,6.55,13.19,13.181,118.2539]
[1672925257749,6.55,13.19,13.182,17.0]
[1672925259858,76.89,13.194,13.182,17.0]
[1672925260088,20.0,13.194,13.182,17.0]
[1672925261539,56.88,13.196,13.182,30.98]
[1672925261751,20.0,13.196,13.182,30.98]
[1672925261963,20.0,13.195,13.182,30.98]
[1672925262795,76.89,13.195,13.182,30.98]
[1672925263120,56.88,13.196,13.183,40.0]
[1672925263321,76.87,13.198,13.185,20.0]
[1672925263532,110.8812,13.199,13.186,55.44]
[1672925263741,110.8812,13.199,13.186,77.85737149]
[1672925263947,20.0,13.198,13.186,77.85737149]
[1672925264168,20.0,13.198,13.186,38.44]
[1672925264378,20.0,13.198,13.186,20.0]
[1672925264602,42.41737149,13.198,13.185,20.0]
[1672925265435,42.41737149,13.198,13.186,17.0]
[1672925265649,20.0,13.196,13.187,20.0]
[1672925266368,76.87,13.198,13.185,20.0]
[1672925266572,76.87,13.198,13.187,22.41737149]
[1672925266573,20.0,13.198,13.187,22.41737149]
[1672925267198,20.0,13.198,13.188,17.0]
[1672925267523,20.0,13.198,13.187,17.0]
[1672925268467,20.0,13.198,13.188,119.4978]
[1672925268678,20.0,13.198,13.186,24.24]
[1672925268888,20.0,13.198,13.187,20.0]
[1672925269095,20.0,13.198,13.185,20.0]
[1672925269418,76.87,13.198,13.185,20.0]
[1672925269962,20.0,13.198,13.186,29.32]
[1672925270152,20.0,13.198,13.187,20.0]
[1672925270574,20.0,13.198,13.188,17.0]
[1672925273622,20.0,13.198,13.187,20.0]
[1672925273833,66.63092879,13.198,13.187,20.0]
[1672925274571,66.63092879,13.198,13.185,20.0]
[1672925274982,66.63092879,13.198,13.186,17.0]
[1672925275193,20.0,13.196,13.187,20.0]
[1672925275408,20.0,13.196,13.188,17.0]
[1672925279319,20.0,13.196,13.187,20.0]
[1672925279633,20.0,13.196,13.185,20.0]
[1672925279832,20.0,13.196,13.183,20.0]
[1672925281947,20.0,13.196,13.184,17.0]
[1672925282259,20.0,13.196,13.185,20.0]
[1672925282471,20.0,13.196,13.186,17.0]
[1672925282891,20.0,13.196,13.179,39.6]
[1672925282892,20.0,13.194,13.179,39.6]
[1672925283098,56.89,13.193,13.182,17.0]
[1672925283413,20.0,13.192,13.182,17.0]
[1672925283614,20.0,13.19,13.177,80.26737149]
[1672925284576,56.9,13.191,13.177,80.26737149]
[1672925284979,56.9,13.191,13.182,17.0]
[1672925285519,20.0,13.19,13.182,17.0]
[1672925286149,20.0,13.19,13.177,60.26737149]
[1672925286337,20.0,13.19,13.177,37.85]
[1672925286886,20.0,13.19,13.176,136.0954]
[1672925287089,20.0,13.19,13.177,20.0]
[1672925287414,111.2688,13.189,13.177,20.0]
[1672925287840,20.0,13.188,13.177,20.0]
[1672925288987,20.0,13.188,13.178,17.0]
[1672925289519,20.0,13.188,13.178,47.41]
[1672925289712,20.0,13.188,13.178,17.0]
[1672925292145,20.0,13.188,13.177,51.05]
[1672925292333,20.0,13.188,13.177,20.0]
[1672925292543,20.0,13.188,13.176,20.0]
[1672925293395,20.0,13.188,13.177,17.0]
[1672925293815,76.92,13.188,13.177,17.0]
[1672925294352,118.68892879,13.188,13.177,17.0]
[1672925294557,171.91932879,13.188,13.177,17.0]
[1672925296035,130.1504,13.188,13.177,17.0]
[1672925297082,130.1504,13.188,13.176,20.0]
[1672925297603,20.0,13.186,13.176,20.0]
[1672925298137,187.0704,13.188,13.175,20.0]
[1672925298560,187.0704,13.188,13.176,17.0]
[1672925299084,187.0704,13.188,13.177,20.0]
[1672925299286,187.0704,13.188,13.178,17.0]
[1672925300140,110.1504,13.188,13.178,17.0]
[1672925300541,110.1504,13.188,13.178,39.41737149]
[1672925300753,167.0704,13.188,13.178,17.0]
[1672925300963,20.0,13.187,13.178,17.0]